bitfinex/quotes_BTCUSD_20220211
["timestamp","ask_amount","ask_price","bid_price","bid_amount"]
[1644595536975,0.05,43667.0,43663.0,0.02112413]
[1644595536976,0.0228734,43664.0,43663.0,0.02112413]
[1644595538213,0.0228734,43664.0,43663.0,0.07112413]
[1644595538610,0.0228734,43664.0,43663.0,0.15112413]
[1644595540212,0.207285,43665.0,43663.0,0.10112413]
[1644595540414,0.00981744,43664.0,43663.0,0.10112413]
[1644595541856,0.00492127,43664.0,43663.0,0.10112413]
[1644595542057,0.32745727,43664.0,43663.0,0.10112413]
[1644595542356,0.00492127,43664.0,43663.0,0.10112413]
[1644595543158,0.32745727,43664.0,43663.0,0.10112413]
[1644595543359,0.00492127,43664.0,43663.0,0.10112413]
[1644595543556,0.32745727,43664.0,43663.0,0.10112413]
[1644595543757,0.00492127,43664.0,43663.0,0.10112413]
[1644595545501,0.28554818,43664.0,43663.0,0.10112413]
[1644595545700,0.60808418,43664.0,43663.0,0.10112413]
[1644595545903,0.28554818,43664.0,43663.0,0.10112413]
[1644595546102,0.60808418,43664.0,43663.0,0.09562413]
[1644595546301,0.37745727,43664.0,43663.0,0.09122413]
[1644595546501,0.37745727,43664.0,43663.0,0.08792413]
[1644595546701,0.18354825,43662.0,43661.0,0.01180611]
[1644595547503,1.05,43661.0,43659.0,0.0011]
[1644595547705,0.75,43658.0,43648.0,0.0001572]
[1644595547901,0.00492127,43651.0,43648.0,0.0001572]
[1644595548951,0.00492127,43651.0,43649.0,0.00022924]
[1644595549754,0.28516661,43651.0,43649.0,0.00022924]
[1644595550154,0.00492127,43651.0,43649.0,0.00022924]
[1644595550858,0.00492127,43651.0,43647.0,0.0022]
[1644595550859,0.26132737,43648.0,43647.0,0.0022]
[1644595551059,0.26132737,43648.0,43647.0,0.0025144]
[1644595551453,0.26624864,43648.0,43647.0,0.0025144]
[1644595551653,0.54984754,43648.0,43647.0,0.0025144]
[1644595552255,0.07561522,43639.0,43634.0,0.05991726]
[1644595552504,0.22561522,43639.0,43637.0,0.0011288]
[1644595552705,0.22561522,43639.0,43637.0,0.0023864]
[1644595552706,0.07561522,43639.0,43637.0,0.0023864]
[1644595553303,0.22561522,43639.0,43637.0,0.0023864]
[1644595553502,0.07561522,43639.0,43638.0,0.28188648]
[1644595553905,0.07561522,43639.0,43638.0,0.42696521]
[1644595554106,0.00044443,43652.0,43647.0,0.06380434]
[1644595554310,0.00044443,43652.0,43648.0,0.48995546]
[1644595554506,0.15044443,43652.0,43649.0,0.0458]
[1644595554706,0.15044443,43652.0,43650.0,0.0458]
[1644595555106,0.15,43652.0,43650.0,0.0458]
[1644595555306,0.15492127,43651.0,43650.0,0.0458]
[1644595555509,0.15492127,43651.0,43648.0,0.0012576]
[1644595555709,0.2,43649.0,43648.0,0.0012576]
[1644595556150,0.47825851,43649.0,43648.0,0.0012576]
[1644595556353,0.47798321,43649.0,43648.0,0.0012576]
[1644595559152,0.1997247,43649.0,43648.0,0.0012576]
[1644595559553,0.19923083,43649.0,43648.0,0.0012576]
[1644595559754,0.057308,43650.0,43648.0,0.0012576]
[1644595560001,0.19923083,43649.0,43648.0,0.0012576]
[1644595560203,0.15,43651.0,43648.0,0.0012576]
[1644595560400,0.15066584,43652.0,43648.0,0.0012576]
[1644595560603,0.15,43651.0,43648.0,0.0012576]
[1644595561703,0.00066854,43652.0,43648.0,0.0012576]
[1644595561903,0.00066854,43652.0,43649.0,0.0458]
[1644595562301,0.15,43653.0,43649.0,0.0458]
[1644595562502,0.15066854,43653.0,43649.0,0.0458]
[1644595562703,0.20796754,43653.0,43649.0,0.0458]
[1644595562903,0.15066854,43653.0,43649.0,0.10309451]
[1644595563202,0.52176683,43651.0,43649.0,0.04580451]
[1644595563402,0.52176683,43651.0,43649.0,6.483e-05]
[1644595563403,0.05492127,43650.0,43649.0,6.483e-05]
[1644595563657,0.32745727,43650.0,43649.0,6.483e-05]
[1644595563858,0.00492127,43650.0,43649.0,6.483e-05]
[1644595564860,0.30492127,43650.0,43649.0,6.483e-05]
[1644595565059,0.00492127,43650.0,43649.0,6.483e-05]
[1644595565259,0.32745727,43650.0,43649.0,6.483e-05]
[1644595565659,0.00492127,43650.0,43649.0,6.483e-05]
[1644595565861,0.32745727,43650.0,43649.0,6.483e-05]
[1644595566060,0.00492127,43650.0,43649.0,6.483e-05]
[1644595566966,0.05732,43643.0,43638.0,0.42]
[1644595567162,0.00492127,43641.0,43638.0,0.42]
[1644595567412,0.52176683,43640.0,43638.0,0.42]
[1644595567803,0.19923083,43640.0,43638.0,0.42]
[1644595568602,0.114651,43640.0,43638.0,0.42]
[1644595568803,2.67603394,43641.0,43638.0,0.42]
[1644595569101,2.67603394,43641.0,43638.0,0.42022668]
[1644595569702,2.67603394,43641.0,43638.0,0.65022668]
[1644595570005,0.25655183,43640.0,43638.0,0.65022668]
[1644595570204,0.29806437,43639.0,43638.0,0.65]
[1644595570403,0.31387483,43640.0,43638.0,0.65]
[1644595570703,0.28137697,43639.0,43638.0,0.65]
[1644595571354,0.28242518,43639.0,43638.0,0.65]
[1644595571960,0.114644,43640.0,43638.0,0.65]
[1644595573757,0.057321,43640.0,43638.0,0.606]
[1644595573959,0.15,43640.0,43639.0,0.06660027]
[1644595574158,0.15,43640.0,43638.0,0.606]
[1644595575004,0.322536,43639.0,43638.0,0.96119101]
[1644595575203,0.15,43640.0,43638.0,1.04491572]
[1644595575805,2.10696669,43640.0,43638.0,1.04491572]
[1644595576007,0.15,43640.0,43638.0,0.68972471]
[1644595577111,0.15,43640.0,43638.0,1.0470056]
[1644595577309,0.15492127,43640.0,43638.0,1.0470056]
[1644595578108,0.15,43640.0,43638.0,1.0470056]
[1644595579764,0.472536,43640.0,43638.0,1.0470056]
[1644595580261,0.15492127,43640.0,43638.0,0.68972471]
[1644595580460,0.15492127,43640.0,43638.0,0.606]
[1644595580862,0.28201509,43639.0,43638.0,0.606]
[1644595581764,0.3541521,43640.0,43638.0,0.606]
[1644595581965,1.05,43638.0,43637.0,0.0011288]
[1644595582164,1.25,43638.0,43619.0,0.3617]
[1644595582409,0.19923083,43632.0,43627.0,0.00081252]
[1644595582599,0.15492127,43628.0,43627.0,0.00081252]
[1644595582800,0.15,43628.0,43627.0,0.00081252]
[1644595584201,0.207335,43628.0,43627.0,0.00081252]
[1644595584401,0.7,43627.0,43621.0,0.0018]
[1644595584604,0.35905281,43626.0,43625.0,0.00022627]
[1644595584801,0.35905281,43626.0,43622.0,0.00022627]
[1644595585011,0.35905281,43626.0,43611.0,0.01]
[1644595585012,0.05492127,43623.0,43611.0,0.01]
[1644595585203,2.19367507,43625.0,43611.0,0.01]
[1644595585204,0.15492127,43612.0,43611.0,0.01]
[1644595585505,1.87533907,43625.0,43612.0,0.08255872]
[1644595585506,0.15,43616.0,43612.0,0.08255872]
[1644595585701,0.517879,43624.0,43612.0,0.08255872]
[1644595585702,0.15,43613.0,43612.0,0.08255872]
[1644595586353,0.207355,43613.0,43612.0,0.03285872]
[1644595586552,0.207355,43613.0,43611.0,0.01]
[1644595586752,0.322536,43612.0,43611.0,0.0067]
[1644595586955,0.15,43608.0,43605.0,0.00121444]
[1644595587153,0.15492127,43606.0,43605.0,0.00121444]
[1644595587352,0.20072127,43606.0,43600.0,0.000401]
[1644595587556,0.67549232,43605.0,43601.0,0.00598735]
[1644595587752,0.15492127,43602.0,43601.0,0.00598735]
[1644595588152,0.15,43602.0,43601.0,8.735e-05]
[1644595588354,0.35,43607.0,43595.0,0.03395246]
[1644595588653,0.15,43605.0,43596.0,0.03395246]
[1644595588854,0.15,43608.0,43596.0,0.03395246]
[1644595589052,0.48939204,43611.0,43601.0,0.28574689]
[1644595589253,0.15,43611.0,43608.0,0.06728042]
[1644595589453,0.15,43611.0,43599.0,0.00070939]
[1644595589652,0.15,43607.0,43599.0,0.00070939]
[1644595589904,0.15,43604.0,43599.0,0.00070939]
[1644595590204,0.01604754,43608.0,43601.0,0.00070938]
[1644595590401,0.15,43604.0,43603.0,0.07059721]
[1644595590601,0.22948,43611.0,43601.0,0.00070938]
[1644595590602,0.057369,43606.0,43601.0,0.00070938]
[1644595590804,0.773863,43615.0,43601.0,0.00070938]
[1644595591002,0.15,43615.0,43601.0,0.00070938]
[1644595591500,0.0458,43616.0,43608.0,0.08094017]
[1644595591501,0.15,43614.0,43608.0,0.08094017]
[1644595591699,0.01604754,43609.0,43608.0,0.08094017]
[1644595592099,0.01604754,43609.0,43608.0,0.23]
[1644595593100,0.01604754,43609.0,43608.0,0.225]
[1644595593305,0.01604754,43609.0,43608.0,0.29844431]
[1644595593761,0.22965519,43618.0,43608.0,0.29844431]
[1644595593961,0.15,43622.0,43608.0,0.29844431]
[1644595594260,0.15,43615.0,43608.0,0.29844431]
[1644595594658,0.30919902,43618.0,43608.0,0.29844431]
[1644595594858,0.15,43614.0,43608.0,0.29844431]
[1644595595260,0.01604754,43618.0,43609.0,0.00069356]
[1644595595460,0.22340054,43619.0,43609.0,0.00069356]
[1644595595658,0.057349,43620.0,43618.0,0.06789619]
[1644595595863,0.05804036,43622.0,43618.0,0.06789619]
[1644595596057,0.15,43623.0,43618.0,0.06789619]
[1644595596256,0.15,43623.0,43617.0,0.0458]
[1644595596461,0.15,43623.0,43615.0,0.00069355]
[1644595596462,0.09159999,43616.0,43615.0,0.00069355]
[1644595597061,0.09159999,43616.0,43615.0,0.04649355]
[1644595597260,0.09159999,43616.0,43615.0,0.0458]
[1644595597502,0.24159999,43616.0,43615.0,0.0458]
[1644595597703,0.09159999,43616.0,43615.0,0.0458]
[1644595598105,0.09159999,43616.0,43613.0,0.00067238]
[1644595598305,0.41401794,43616.0,43613.0,0.00067238]
[1644595598503,0.09159999,43616.0,43610.0,6.035e-05]
[1644595599304,0.15,43615.0,43610.0,6.035e-05]
[1644595599506,0.09159999,43616.0,43610.0,6.035e-05]
[1644595599705,0.14159999,43616.0,43610.0,6.035e-05]
[1644595600204,0.09159999,43616.0,43610.0,6.035e-05]
[1644595600805,0.09159999,43616.0,43611.0,0.06747231]
[1644595601250,0.09159999,43616.0,43611.0,0.068183]
[1644595601451,0.322536,43615.0,43611.0,0.068183]
[1644595601649,0.322536,43614.0,43611.0,0.068183]
[1644595601850,0.15,43614.0,43611.0,0.068183]
[1644595602051,0.16604754,43614.0,43611.0,0.06747231]
[1644595602450,0.16604754,43614.0,43611.0,0.06769803]
[1644595603254,0.15,43613.0,43611.0,0.06769803]
[1644595603457,0.15,43613.0,43612.0,6.025e-05]
[1644595603853,0.01604754,43614.0,43612.0,6.025e-05]
[1644595604053,0.15,43613.0,43612.0,6.025e-05]
[1644595605505,0.45737704,43613.0,43612.0,6.025e-05]
[1644595605708,0.77991304,43613.0,43612.0,6.025e-05]
[1644595605903,0.45737704,43613.0,43612.0,6.025e-05]
[1644595606704,0.472536,43613.0,43612.0,6.025e-05]
[1644595607105,0.15,43613.0,43612.0,6.025e-05]
[1644595607305,0.472536,43613.0,43612.0,6.025e-05]
[1644595607706,0.15,43613.0,43612.0,6.025e-05]
[1644595607907,0.472536,43613.0,43612.0,6.025e-05]
[1644595608406,0.322536,43612.0,43611.0,0.23028597]
[1644595608652,0.15,43613.0,43611.0,0.23028597]
[1644595609352,0.15,43613.0,43611.0,0.23006025]
[1644595609552,0.15,43613.0,43612.0,0.08101415]
[1644595610654,0.15,43613.0,43611.0,0.23028597]
[1644595610858,0.15,43613.0,43611.0,0.23006025]
[1644595612254,0.15,43613.0,43607.0,0.08007634]
[1644595612705,0.09159999,43616.0,43609.0,0.08737015]
[1644595612906,0.15,43610.0,43609.0,0.08737015]
[1644595615507,0.057351,43615.0,43609.0,0.08737015]
[1644595615508,0.15,43613.0,43609.0,0.08737015]
[1644595615909,0.01604754,43615.0,43609.0,0.13737015]
[1644595616158,0.09159999,43616.0,43609.0,0.13737015]
[1644595616355,0.09159999,43616.0,43614.0,0.37708399]
[1644595616556,0.15,43615.0,43614.0,0.37708399]
[1644595616757,0.09159999,43616.0,43614.0,0.42288399]
[1644595616959,0.09231059,43616.0,43615.0,0.29360364]
[1644595617160,0.09231059,43616.0,43615.0,0.33940364]
[1644595617363,0.15,43624.0,43616.0,1.12182422]
[1644595617560,0.15,43624.0,43623.0,0.3060233]
[1644595617761,0.15,43624.0,43623.0,0.3518233]
[1644595618062,0.24923083,43638.0,43623.0,0.3518233]
[1644595618063,0.16604754,43639.0,43635.0,0.07575908]
[1644595618361,0.15151816,43630.0,43625.0,0.07882723]
[1644595618561,0.15151816,43630.0,43626.0,0.29869791]
[1644595618763,0.15151816,43630.0,43627.0,0.0458]
[1644595619364,0.322536,43628.0,43627.0,0.0458]
[1644595619660,0.32173846,43628.0,43627.0,0.0458]
[1644595619915,0.2248987,43630.0,43627.0,0.0458]
[1644595620108,0.20885116,43630.0,43627.0,0.0458]
[1644595620306,0.15151816,43630.0,43628.0,0.07792634]
[1644595620509,0.15151816,43630.0,43624.0,0.0458]
[1644595620708,0.30151816,43630.0,43624.0,0.0458]
[1644595620908,0.28460773,43629.0,43624.0,0.0458]
[1644595621109,0.28460773,43629.0,43610.0,0.05]
[1644595621110,0.15,43618.0,43610.0,0.11467426]
[1644595621313,0.15,43618.0,43605.0,0.3654]
[1644595621314,0.322536,43615.0,43605.0,0.3654]
[1644595621610,0.3,43617.0,43611.0,0.07346061]
[1644595621810,0.15,43616.0,43611.0,0.07346061]
[1644595622009,0.322536,43614.0,43611.0,0.07346061]
[1644595622207,0.15,43616.0,43611.0,0.07346061]
[1644595622408,0.322536,43615.0,43611.0,0.07346061]
[1644595622608,0.322536,43615.0,43611.0,0.07274978]
[1644595622808,0.15,43616.0,43611.0,0.07274978]
[1644595623653,0.05780026,43618.0,43611.0,0.07274978]
[1644595623861,0.19484864,43627.0,43615.0,0.18601108]
[1644595624065,0.00045326,43618.0,43615.0,0.057334]
[1644595624257,0.00045326,43618.0,43613.0,0.114662]
[1644595624655,0.00034926,43618.0,43614.0,0.05]
[1644595625055,0.19484864,43627.0,43616.0,0.30622699]
[1644595625255,0.27041334,43628.0,43617.0,0.05]
[1644595625256,0.19484864,43628.0,43617.0,0.05]
[1644595625456,0.19484864,43628.0,43626.0,0.06792222]
[1644595625856,0.22338454,43627.0,43626.0,0.06792222]
[1644595626059,0.07338454,43627.0,43616.0,0.29369348]
[1644595626260,0.01604754,43625.0,43616.0,0.29369348]
[1644595626460,0.15,43624.0,43616.0,0.29369348]
[1644595626657,0.01604754,43625.0,43616.0,0.29369348]
[1644595626859,0.19525802,43628.0,43615.0,0.28452041]
[1644595627059,0.19525802,43626.0,43614.0,0.32042439]
[1644595627263,0.16604754,43623.0,43615.0,0.07342052]
[1644595627509,0.19525802,43625.0,43615.0,0.13075752]
[1644595627706,0.19525802,43625.0,43618.0,0.2799776]
[1644595627707,0.00070882,43622.0,43618.0,0.2799776]
[1644595627907,0.00070882,43622.0,43618.0,0.30392407]
[1644595628307,0.00070882,43622.0,43618.0,0.40392407]
[1644595628708,0.25259502,43627.0,43618.0,0.45392407]
[1644595628907,0.00070882,43622.0,43618.0,0.45392407]
[1644595629306,0.00070882,43622.0,43618.0,0.15]
[1644595629608,0.00070882,43622.0,43617.0,0.00022244]
[1644595629609,0.01604754,43620.0,43617.0,0.00022244]
[1644595629807,0.21130556,43620.0,43617.0,0.00022244]
[1644595630006,0.19525802,43623.0,43617.0,0.00022244]
[1644595630207,0.00070882,43622.0,43613.0,0.05733609]
[1644595630607,0.00070882,43622.0,43613.0,0.34887615]
[1644595630807,0.00070882,43622.0,43619.0,0.3519901]
[1644595631153,0.19525802,43624.0,43619.0,0.3519901]
[1644595631354,0.3008968,43627.0,43614.0,0.19562066]
[1644595631355,0.00069302,43620.0,43615.0,0.00022244]
[1644595631555,0.00069302,43620.0,43615.0,0.08088413]
[1644595631758,0.00069302,43620.0,43615.0,0.08110657]
[1644595632356,0.01604754,43623.0,43616.0,0.30432754]
[1644595632554,0.00069302,43620.0,43617.0,0.05734]
[1644595632753,0.00069302,43620.0,43617.0,0.10756244]
[1644595633355,0.00069302,43620.0,43617.0,0.33756244]
[1644595633555,0.19525802,43624.0,43619.0,0.22273373]
[1644595633756,0.00069301,43621.0,43619.0,0.64611892]
[1644595634158,0.00069301,43621.0,43619.0,0.58878192]
[1644595634758,0.19525802,43624.0,43619.0,0.58878192]
[1644595635003,0.00067015,43622.0,43619.0,0.58878192]
[1644595635203,0.00067015,43622.0,43620.0,0.057336]
[1644595635903,0.01604754,43623.0,43620.0,0.057336]
[1644595636103,0.01671768,43623.0,43620.0,0.057336]
[1644595636703,0.00067014,43623.0,43620.0,0.057336]
[1644595636905,0.01671768,43623.0,43620.0,0.057336]
[1644595637104,0.19525802,43626.0,43620.0,0.057336]
[1644595637302,0.00067014,43624.0,43620.0,0.057336]
[1644595637703,0.00067014,43624.0,43623.0,0.26432698]
[1644595637901,0.00067014,43624.0,43623.0,0.33923106]
[1644595638106,0.15151816,43630.0,43623.0,0.43923106]
[1644595638305,0.15151816,43630.0,43626.0,0.05]
[1644595638507,0.15151816,43630.0,43627.0,0.0458]
[1644595638781,0.15151816,43630.0,43627.0,0.0958]
[1644595638976,0.15151816,43630.0,43627.0,0.153116]
[1644595639177,0.15151816,43630.0,43628.0,0.35085104]
[1644595639379,0.4583205,43639.0,43630.0,0.0658282]
[1644595639380,0.16604754,43639.0,43630.0,0.0658282]
[1644595639977,0.16604754,43639.0,43631.0,0.057316]
[1644595640180,0.29227296,43642.0,43631.0,0.057316]
[1644595640181,0.3,43644.0,43631.0,0.057316]
[1644595640381,0.01604754,43639.0,43638.0,0.66511012]
[1644595640579,0.01604754,43639.0,43638.0,0.01175753]
[1644595642182,0.15,43640.0,43638.0,0.01175753]
[1644595642424,0.01604754,43639.0,43638.0,0.06882502]
[1644595643015,0.01604754,43639.0,43638.0,0.40644029]
[1644595643615,0.01604754,43639.0,43638.0,0.06882502]
[1644595644913,0.00070871,43641.0,43638.0,0.29882502]
[1644595645116,0.01604754,43639.0,43638.0,0.29882502]
[1644595645915,0.00070871,43641.0,43638.0,0.29882502]
[1644595646756,0.00219239,43646.0,43640.0,0.057299]
[1644595646955,0.00219239,43646.0,43645.0,0.33289236]
[1644595647157,0.00219239,43646.0,43645.0,0.45591795]
[1644595647361,0.00219239,43646.0,43645.0,0.06572559]
[1644595647958,2.13420449,43646.0,43645.0,0.06572559]
[1644595648360,2.13420449,43646.0,43639.0,0.2883288]
[1644595648661,1.98420449,43646.0,43639.0,0.2883288]
[1644595648859,0.00219239,43646.0,43639.0,0.2883288]
[1644595649261,0.00219239,43646.0,43640.0,0.057307]
[1644595649462,0.00219239,43646.0,43644.0,0.0774574]
[1644595650504,0.15219239,43646.0,43644.0,0.0774574]
[1644595650704,0.00219239,43646.0,43638.0,0.23]
[1644595651605,0.00219239,43646.0,43639.0,0.11461399]
[1644595651808,0.00070951,43644.0,43643.0,0.3780873]
[1644595652207,0.00070951,43644.0,43643.0,0.5238873]
[1644595652408,0.00070951,43644.0,43643.0,0.1458]
[1644595652611,0.16675705,43644.0,43638.0,0.23]
[1644595652806,0.00219239,43646.0,43638.0,0.23]
[1644595652807,0.2550661,43646.0,43638.0,0.23]
[1644595653006,0.01604754,43639.0,43638.0,0.23]
[1644595653649,0.59466743,43645.0,43638.0,0.31719772]
[1644595653650,0.01604754,43643.0,43638.0,0.31719772]
[1644595654253,0.00070953,43641.0,43638.0,0.31719772]
[1644595654851,0.00070953,43641.0,43638.0,0.36719772]
[1644595655252,0.057313,43644.0,43638.0,0.36719772]
[1644595655453,0.00070953,43642.0,43638.0,0.36719772]
[1644595655652,0.00070953,43642.0,43638.0,0.28]
[1644595655653,0.01604754,43639.0,43638.0,0.28]
[1644595655860,0.00070953,43642.0,43641.0,0.37053057]
[1644595656057,0.00070953,43642.0,43641.0,0.42783357]
[1644595656456,0.00219239,43646.0,43641.0,0.42783357]
[1644595656754,0.00219239,43646.0,43642.0,0.10730384]
[1644595656954,0.00070951,43644.0,43642.0,0.4329112]
[1644595657411,0.00648409,43648.0,43642.0,0.4329112]
[1644595657807,0.00648409,43648.0,43642.0,0.3829112]
[1644595658009,0.00070951,43645.0,43642.0,0.3829112]
[1644595658810,0.067306,43649.0,43644.0,0.19132011]
[1644595659012,0.01,43649.0,43644.0,0.24862307]
[1644595659615,0.01,43649.0,43644.0,0.34862307]
[1644595659813,0.01,43649.0,43644.0,0.39862307]
[1644595660413,0.06648409,43659.0,43645.0,0.114596]
[1644595660614,0.00648409,43659.0,43649.0,0.05728862]
[1644595660814,0.19555671,43663.0,43648.0,0.1]
[1644595661016,0.2020408,43663.0,43648.0,0.05]
[1644595661253,0.2020408,43663.0,43647.0,0.16862634]
[1644595661254,0.19555671,43663.0,43647.0,0.16862634]
[1644595661456,0.24442249,43665.0,43660.0,0.38450836]
[1644595661457,0.19555671,43662.0,43660.0,0.38450836]
[1644595661657,0.19555671,43665.0,43658.0,0.12813845]
[1644595662062,0.35227296,43669.0,43658.0,0.12813845]
[1644595662063,0.19555671,43667.0,43658.0,0.12813845]
[1644595662357,0.01648409,43669.0,43658.0,0.12813845]
[1644595662558,0.01,43669.0,43668.0,0.65730049]
[1644595662762,0.01,43669.0,43668.0,0.3763031]
[1644595662958,0.01,43669.0,43668.0,0.4763031]
[1644595663658,0.01,43669.0,43668.0,0.82260713]
[1644595664560,0.01,43669.0,43668.0,0.4763031]
[1644595665204,0.00706823,43679.0,43669.0,1.05]
[1644595665414,0.00706823,43679.0,43671.0,0.05]
[1644595665604,0.00706823,43679.0,43673.0,0.057261]
[1644595665806,0.00706823,43679.0,43673.0,0.103061]
[1644595666405,0.00706823,43679.0,43678.0,0.30291919]
[1644595666606,0.00706823,43679.0,43673.0,0.16029646]
[1644595667009,0.00648409,43677.0,43673.0,0.16029646]
[1644595667207,0.00706823,43679.0,43673.0,0.16029646]
[1644595667607,0.0075214,43679.0,43677.0,0.2857465]
[1644595667807,0.41715654,43676.0,43674.0,0.64008726]
[1644595668205,0.41715654,43676.0,43675.0,0.06384389]
[1644595668654,0.41715654,43676.0,43675.0,0.35236537]
[1644595668854,0.41715654,43676.0,43675.0,0.45236537]
[1644595669456,0.41715654,43676.0,43675.0,0.16384389]
[1644595669857,0.41715654,43676.0,43675.0,0.27834589]
[1644595670058,0.41715654,43676.0,43674.0,0.54008726]
[1644595670259,0.41715654,43676.0,43674.0,0.23]
[1644595671061,0.25012827,43675.0,43674.0,0.23]
[1644595671261,0.57266427,43675.0,43674.0,0.23]
[1644595671659,0.88049268,43675.0,43674.0,0.23]
[1644595672059,0.61846427,43675.0,43674.0,0.23]
[1644595672260,0.66846427,43675.0,43659.0,0.31948015]
[1644595672505,1.05,43674.0,43670.0,0.0001]
[1644595672810,0.15648409,43671.0,43670.0,0.0001]
[1644595673207,0.54491434,43671.0,43670.0,0.0001]
[1644595673606,0.65220134,43671.0,43670.0,0.0001]
[1644595673805,0.97662998,43671.0,43670.0,0.0001]
[1644595674405,0.58819973,43671.0,43670.0,0.0001]
[1644595674808,0.68210709,43671.0,43670.0,0.0001]
[1644595675007,0.61182749,43671.0,43670.0,0.0001]
[1644595675406,9.569e-05,43669.0,43668.0,0.00071191]
[1644595675607,0.50567988,43669.0,43668.0,0.00071191]
[1644595675810,0.66023388,43669.0,43653.0,0.18668547]
[1644595676010,0.66023388,43669.0,43668.0,0.00071191]
[1644595676260,0.66671797,43669.0,43668.0,0.00071191]
[1644595676459,0.46671797,43669.0,43668.0,0.00071191]
[1644595676762,0.44958662,43669.0,43668.0,0.00071191]
[1644595676961,0.44958662,43669.0,43662.0,0.28282893]
[1644595677160,0.00648409,43663.0,43662.0,0.28282893]
[1644595677461,0.00648409,43663.0,43662.0,0.35900775]
[1644595677860,0.00648409,43663.0,43662.0,0.58900775]
[1644595678366,0.00648409,43666.0,43662.0,0.58900775]
[1644595678663,0.14336434,43669.0,43662.0,0.58900775]
[1644595678664,9.569e-05,43669.0,43663.0,0.30682632]
[1644595678861,9.569e-05,43669.0,43663.0,0.45682632]
[1644595679360,9.569e-05,43669.0,43666.0,0.39173402]
[1644595679560,9.569e-05,43669.0,43666.0,0.44900625]
[1644595679760,9.569e-05,43669.0,43667.0,0.5107274]
[1644595680009,9.569e-05,43669.0,43667.0,0.2086095]
[1644595680204,9.569e-05,43669.0,43666.0,0.54900625]
[1644595680406,9.569e-05,43669.0,43666.0,0.54911055]
[1644595680804,9.569e-05,43669.0,43666.0,0.54982247]
[1644595681604,9.569e-05,43669.0,43665.0,0.32125666]
[1644595682005,9.569e-05,43669.0,43665.0,0.00071193]
[1644595683003,9.569e-05,43669.0,43666.0,0.05727223]
[1644595686557,9.569e-05,43669.0,43662.0,0.30617882]
[1644595686558,0.00648409,43667.0,43662.0,0.30617882]
[1644595686758,0.00648409,43663.0,43662.0,0.30617882]
[1644595686958,0.32902009,43663.0,43662.0,0.23]
[1644595687158,0.00648409,43663.0,43662.0,0.23]
[1644595687412,0.32977902,43663.0,43662.0,0.23]
[1644595687703,0.46,43660.0,43649.0,0.47738668]
[1644595687903,0.00648409,43654.0,43652.0,0.0837138]
[1644595688503,0.00648409,43654.0,43649.0,0.11458668]
[1644595688709,1.96676966,43654.0,43645.0,0.72172619]
[1644595689102,1.96028557,43654.0,43649.0,0.00071202]
[1644595689504,0.10395274,43652.0,43649.0,0.00071202]
[1644595689706,0.28090572,43651.0,43649.0,0.00071202]
[1644595690407,0.09746865,43646.0,43645.0,0.23]
[1644595690603,0.39257541,43646.0,43645.0,0.23]
[1644595690803,0.10395274,43646.0,43645.0,0.23]
[1644595691862,0.057316,43648.0,43645.0,0.23]
[1644595692062,0.10395274,43646.0,43645.0,0.23]
[1644595693264,0.09746865,43646.0,43645.0,0.23]
[1644595693463,0.10395274,43646.0,43645.0,0.23]
[1644595693665,0.057316,43648.0,43645.0,0.23]
[1644595693867,0.10395274,43646.0,43645.0,0.23]
[1644595695308,0.057316,43648.0,43645.0,0.23]
[1644595695509,0.10395274,43646.0,43645.0,0.23]
[1644595695708,0.057316,43648.0,43645.0,0.23]
[1644595695910,0.10395274,43646.0,43645.0,0.23]
[1644595696511,0.39437735,43646.0,43645.0,0.2378]
[1644595697512,0.2969087,43646.0,43645.0,0.2378]
[1644595697810,0.10379687,43646.0,43645.0,0.236067]
[1644595698658,0.10395541,43646.0,43645.0,0.23612754]
[1644595699060,0.41019797,43646.0,43645.0,0.23612754]
[1644595700758,0.10395541,43646.0,43645.0,0.23612754]
[1644595701564,0.41656206,43642.0,43640.0,0.05731261]
[1644595701763,0.41656206,43642.0,43640.0,0.39440776]
[1644595702162,0.42304615,43642.0,43640.0,0.05731261]
[1644595702424,0.42304615,43642.0,43638.0,0.0773521]
[1644595703216,0.42304615,43642.0,43640.0,0.30362247]
[1644595703417,0.09731278,43641.0,43638.0,0.0773521]
[1644595703618,0.09731278,43639.0,43638.0,0.0773521]
[1644595704519,0.41656206,43642.0,43638.0,0.13466151]
[1644595705120,0.41656206,43642.0,43639.0,0.44019968]
[1644595705720,0.41656206,43642.0,43639.0,0.057308]
[1644595706360,0.00648409,43640.0,43638.0,0.13466151]
[1644595706560,0.10379687,43640.0,43638.0,0.13466151]
[1644595707163,0.00648409,43639.0,43638.0,0.0773521]
[1644595707364,0.10379687,43639.0,43638.0,0.0773521]
[1644595707964,0.41656206,43642.0,43638.0,0.0773521]
[1644595708464,0.41672005,43642.0,43638.0,0.13466127]
[1644595709065,0.00648409,43639.0,43638.0,0.13466127]
[1644595709266,0.00648409,43639.0,43638.0,0.0773521]
[1644595709665,0.41672005,43642.0,43638.0,0.07806462]
[1644595709918,0.00648409,43639.0,43638.0,0.07806462]
[1644595710310,0.00648409,43639.0,43638.0,0.07306462]
[1644595710509,0.00648409,43639.0,43638.0,0.0723521]
[1644595711311,0.10379687,43639.0,43638.0,0.0723521]
[1644595711712,0.41672005,43642.0,43638.0,0.0723521]
[1644595711911,0.10379687,43639.0,43638.0,0.0723521]
[1644595712312,0.10379687,43639.0,43637.0,0.11461892]
[1644595712513,0.09731278,43639.0,43638.0,0.23]
[1644595712714,0.42633287,43639.0,43638.0,0.23]
[1644595712913,0.42633287,43639.0,43638.0,0.1678503]
[1644595713114,0.42633287,43639.0,43638.0,0.0686569]
[1644595713115,0.77213287,43639.0,43638.0,0.0686569]
[1644595713514,0.77229053,43639.0,43638.0,0.0686569]
[1644595713762,1.28114264,43639.0,43638.0,0.06852397]
[1644595713962,1.47633175,43639.0,43638.0,0.06852397]
[1644595714163,0.98114264,43639.0,43638.0,0.06352397]
[1644595714561,0.93114264,43639.0,43638.0,0.06352397]
[1644595714764,0.60860664,43639.0,43638.0,0.06352397]
[1644595715162,0.90056562,43639.0,43638.0,0.06352397]
[1644595715764,1.22310162,43639.0,43638.0,0.06352397]
[1644595715963,0.90056562,43639.0,43638.0,0.06352397]
[1644595716163,1.22310162,43639.0,43638.0,0.06352397]
[1644595716563,0.90056562,43639.0,43638.0,0.06352397]
[1644595717413,1.22310162,43639.0,43638.0,0.06352397]
[1644595719212,0.93114264,43639.0,43638.0,0.06352397]
[1644595719410,1.21153118,43639.0,43638.0,0.06352397]
[1644595720014,0.88899518,43639.0,43638.0,0.06352397]